fUSD/lending_fUSD_20250607
["ID","MTS","AMOUNT","RATE_DAILY","PERIOD"]
[364857841,1749277838731,-7386984.55262123,0.0002,2]
[364857879,1749277840948,-15937.73840051,0.00019899,2]
[364857882,1749277840958,-843085.17724732,0.0002,2]
[364857895,1749277841067,-402.15250002,0.0002,2]
[364858594,1749277918751,250.0,0.0003561,120]
[364858606,1749277979175,804.0,0.0003561,120]
[364858607,1749277993096,500.0,0.00035612,120]
[364858608,1749278008123,500.0,0.00035612,120]
[364858609,1749278012883,500.0,0.00035612,120]
[364858610,1749278026307,1335.27,0.00018557,2]
[364858611,1749278038963,587.0,0.0003561,120]
[364858612,1749278166880,171.15,0.00017241,2]
[364858701,1749278461811,156.73,0.00013699,2]
[364858708,1749278482080,-245.22978783,0.00019425,2]
[364858712,1749278489184,-153.68422273,0.00019425,2]
[364858713,1749278493934,-199.61,0.00019425,2]
[364858716,1749278496925,-192.09517978,0.00019425,2]
[364858717,1749278503365,-151.0,0.00019425,2]
[364858718,1749278506156,-306.23616095,0.00019425,2]
[364858719,1749278510350,-151.0,0.00019425,2]
[364858720,1749278514628,-269.56,0.00019425,2]
[364858721,1749278518187,-226.87426699,0.00019425,2]
[364858722,1749278529734,-250.0,0.00019425,2]
[364858724,1749278533672,-7.99038172,0.00019425,2]
[364858726,1749278554548,316.05,0.000268,120]
[364858727,1749278554857,-217.64606874,0.00019491,2]
[364858728,1749278554921,316.05,0.00029237,120]
[364858729,1749278558584,-98.40393126,0.00019491,2]
[364858738,1749278591960,570.99968,0.00035616,120]
[364858739,1749278601723,-293.86897574,0.00019519,2]
[364858740,1749278606439,-175.07867766,0.00019519,2]
[364858741,1749278607494,500.0,0.00035616,120]
[364858742,1749278610035,-300.0,0.00019519,2]
[364858743,1749278610735,500.0,0.00035616,120]
[364858744,1749278615583,-151.0,0.00019519,2]
[364858746,1749278677665,-151.0,0.0001936,2]
[364858747,1749278677690,-29.71420221,0.00019387,2]
[364858748,1749278680006,353.68,0.000356,120]
[364858749,1749278682481,-261.39576756,0.00019387,2]
[364858750,1749278686905,-276.77142632,0.00019387,2]
[364858751,1749278691307,-300.60106915,0.00019387,2]
[364858752,1749278695038,-175.97920247,0.00019387,2]
[364858753,1749278697162,-314.06887878,0.00019387,2]
[364858754,1749278699303,-228.5055621,0.00019387,2]
[364858755,1749278701993,-236.13294868,0.00019387,2]
[364858756,1749278706577,-188.51534781,0.00019387,2]
[364858757,1749278708198,-247.79686332,0.00019387,2]
[364858758,1749278711180,-151.0,0.00019387,2]
[364858759,1749278713932,-516.6687316,0.00019387,2]
[364858760,1749278713956,-88.52157874,0.00019387,2]
[364858761,1749278716506,-161.47842126,0.00019387,2]
[364858762,1749278766808,-241.77988118,0.00019519,2]
[364858763,1749278769469,-274.80076603,0.00019519,2]
[364858764,1749278773895,-270.7548247,0.00019519,2]
[364858765,1749278776619,-145.13687469,0.00019519,2]
[364858766,1749278776642,-95.87399439,0.00019596,2]
[364858767,1749278785992,-104.12600561,0.00019596,2]
[364858768,1749278786018,-102.9139823,0.0001966,2]
[364858769,1749278790284,-175.15,0.00019178,2]
[364858770,1749278790308,-87.81712818,0.00019647,2]
[364858771,1749278792387,-206.41661809,0.00019647,2]
[364858772,1749278799496,-304.76078478,0.00019647,2]
[364858773,1749278806149,-262.89,0.00019647,2]
[364858774,1749278809065,-156.25,0.00019647,2]
[364858775,1749278815028,-162.51,0.00019647,2]
[364858776,1749278817185,-153.18414788,0.00019647,2]
[364858777,1749278822665,-173.68862881,0.00019646,2]
[364858778,1749278827160,-126.31137119,0.00019646,2]
[364858779,1749278827185,-33.02862881,0.00019647,2]
[364858780,1749278829633,-151.0,0.00019596,2]
[364858781,1749278829656,-3.95185434,0.00019647,2]
[364858782,1749278832619,-192.31822031,0.00019647,2]
[364858796,1749278839613,-337.84250663,0.00019647,2]
[364858822,1749278847692,-213.11120678,0.00019647,2]
[364858823,1749278854435,-173.224352,0.00019647,2]
[364858824,1749278857826,-150.0,0.00019598,7]
[364858825,1749278857850,-195.80780132,0.00019647,2]
[364858826,1749278863235,-177.80822872,0.00019647,2]
[364858827,1749278870696,-390.1686845,0.00019647,2]
[364858828,1749278873443,-303.43888627,0.00019647,2]
[364858829,1749278878668,-170.61,0.00019647,2]
[364858830,1749278882368,-153.81585563,0.00019647,2]
[364858831,1749278887780,-164.67401434,0.00019647,2]
[364858832,1749278895183,-216.5027294,0.00019647,2]
[364858833,1749278899233,-151.0,0.00019647,2]
[364858834,1749278903977,-151.0,0.00019647,2]
[364858835,1749278910936,-193.96991892,0.00019647,2]
[364858836,1749278913847,-151.0,0.00019647,2]
[364858837,1749278919582,-151.26219868,0.00019647,2]
[364858838,1749278923944,-186.88879322,0.00019647,2]
[364858839,1749278927807,-283.43580371,0.00019561,2]
[364858840,1749278930367,-163.62340537,0.00019561,2]
[364858842,1749278937498,-287.9203489,0.00019561,2]
[364858843,1749278942793,-179.52772659,0.0001956,2]
[364858844,1749278953101,-120.47227341,0.0001956,2]
[364858845,1749278953125,-208.04215768,0.00019561,2]
[364858846,1749278959243,-248.70105122,0.00019547,2]
[364858847,1749278959267,-140.17445673,0.00019561,2]
[364858848,1749278967278,-153.35,0.00019561,2]
[364858849,1749278971067,-213.08809607,0.00019561,2]
[364858850,1749278972982,-170.97,0.00019561,2]
[364858851,1749278975231,-181.64870902,0.00019561,2]
[364858852,1749278983937,-173.94114139,0.00019561,2]
[364858854,1749278986693,10000.0,0.00035616,120]
[364858855,1749278990716,-299.14814566,0.00019561,2]
[364858856,1749278993830,-163.59521224,0.00019561,2]
[364858857,1749278999545,-307.10800911,0.00019561,2]
[364858858,1749279023161,442.03,0.0001895,2]
[364858863,1749279032143,-5944.89825778,0.000195,2]
[364858864,1749279032154,-588.26291479,0.000195,2]
[364858865,1749279032212,-23466.83882743,0.000195,2]
[364858866,1749279032223,-1200.0,0.0001956,2]
[364858867,1749279032235,-300.0,0.0001956,2]
[364858868,1749279032245,-21153.95451412,0.00019561,2]
[364858870,1749279032254,-10054.7799885,0.0001957,2]
[364858871,1749279032263,-47836.0080663,0.00019647,2]
[364858874,1749279032273,-300.0,0.00019654,2]
[364858875,1749279032283,-300.0,0.00019658,2]
[364858877,1749279032292,-873.95752359,0.00019658,2]
[364858879,1749279032303,-300.0,0.0001966,2]
[364858880,1749279032312,-160.03057566,0.00019661,2]
[364858881,1749279032321,-26287.2739159,0.00019661,2]
[364858882,1749279032334,-17916.8460841,0.00019661,2]
[364858883,1749279032343,-11287.39842183,0.0001969,2]
[364858884,1749279032353,-24858.67659353,0.00019695,2]
[364858885,1749279032369,-1110.88813931,0.00019695,2]
[364858886,1749279032387,-536.58631788,0.00019695,2]
[364858887,1749279032399,-9878.43711539,0.00019695,2]
[364858888,1749279032412,-276.65889505,0.00019695,2]
[364858889,1749279032423,-578.0878976,0.00019695,2]
[364858890,1749279032440,-2741.35134439,0.00019695,2]
[364858898,1749279037634,-641.99839004,0.00019694,2]
[364858899,1749279037644,-175.66899229,0.00019694,2]
[364858900,1749279037653,-1798.26256835,0.00019695,2]
[364858901,1749279037664,-1070.70831661,0.00019695,2]
[364858902,1749279037746,-3426.3938299,0.00019695,2]
[364858903,1749279037758,-2132.57087603,0.00019695,2]
[364858904,1749279037770,-575.44595638,0.00019695,2]
[364858905,1749279037782,-9827.42884134,0.00019695,2]
[364858906,1749279037793,-1631.0,0.00019695,2]
[364858908,1749279038009,-23866.37440034,0.00019695,2]
[364858909,1749279038020,-77169.89,0.00019709,2]
[364858910,1749279038030,-1753.62,0.0001979,2]
[364858911,1749279038039,-800.0,0.000199,4]
[364858912,1749279038048,-712.03213416,0.000199,2]
[364858913,1749279038059,-332.55900132,0.000199,2]
[364858914,1749279038068,-13966.18915867,0.000199,2]
[364858915,1749279038078,-174.25513704,0.000199,2]
[364858916,1749279038087,-160.66128485,0.000199,2]
[364858917,1749279038097,-375.30029244,0.000199,2]
[364858918,1749279038107,-500.0,0.00019973,2]
[364858919,1749279038116,-500.0,0.00019973,2]
[364858920,1749279038126,-290.97200962,0.00019973,2]
[364858921,1749279038136,-500.0,0.00019973,2]
[364858922,1749279038145,-511.69830946,0.00019973,2]
[364858923,1749279038155,-151.74,0.0001999,2]
[364858924,1749279038164,-151.74,0.0001999,2]
[364858925,1749279038174,-151.74,0.0001999,2]
[364858926,1749279038184,-1252.39902294,0.00019999,5]
[364858927,1749279038194,-288.02,0.00019999,2]
[364858928,1749279038204,-1106.962,0.00019999,2]
[364858929,1749279038214,-1339820.56987829,0.0002,2]
[364858930,1749279038223,-338.74695422,0.0002,2]
[364858931,1749279038233,-154.77621848,0.0002,2]
[364858932,1749279038243,-117488.41263063,0.0002,2]
[364858933,1749279038253,-454.78576308,0.0002,2]
[364858934,1749279038262,-162.65,0.00020058,2]
[364858935,1749279038271,-102094.7185884,0.00020112,2]
[364858936,1749279038280,-2174.83,0.00020126,2]
[364858937,1749279038290,-162.38071902,0.00020144,2]
[364858938,1749279038299,-2731.19,0.00020195,2]
[364858939,1749279038312,-500.0,0.00020274,2]
[364858940,1749279038323,-3290.79903309,0.00020402,2]
[364858941,1749279038334,-10000.0,0.000205,2]
[364858943,1749279038344,-1000.0,0.00020521,2]
[364858945,1749279038354,-504.11914996,0.00020521,2]
[364858946,1749279038364,-1000.0,0.00020521,2]
[364858947,1749279038374,-156.73,0.00020548,2]
[364858948,1749279038383,-11287.39842177,0.00020572,2]
[364858949,1749279038393,-1000.0,0.00020731,2]
[364858950,1749279038403,-13966.18915865,0.00020758,2]
[364858951,1749279038413,-1335.27,0.00020821,2]
[364858952,1749279038424,-164.66,0.00020986,2]
[364858954,1749279038436,-165.7,0.00021065,2]
[364858955,1749279038445,-511.13241771,0.00021068,2]
[364858956,1749279038455,-318.8753467,0.00021068,2]
[364858957,1749279038465,-3151.43433,0.0002113,2]
[364858958,1749279038476,-3151.43434,0.0002118,2]
[364858959,1749279038485,-3151.43434,0.0002126,2]
[364858960,1749279038495,-420.0,0.00021308,2]
[364858961,1749279038505,-3151.43434,0.0002134,2]
[364858962,1749279038515,-288.02,0.00021369,2]
[364858963,1749279038524,-1680.0,0.00021411,2]
[364858965,1749279038534,-420.0,0.00021415,2]
[364858967,1749279038543,-3151.43434,0.0002142,2]
[364858969,1749279038553,-11287.39842177,0.00021454,2]
[364858971,1749279038564,-250.0,0.00021471,2]
[364858972,1749279038574,-300.0,0.00021471,2]
[364858973,1749279038583,-3151.43433,0.0002149,2]
[364858974,1749279038592,-250.0,0.00021517,2]
[364858975,1749279038601,-300.0,0.00021517,2]
[364858976,1749279038610,-712.03213416,0.00021567,2]
[364858977,1749279038619,-250.0,0.00021612,2]
[364858978,1749279038628,-300.0,0.00021612,2]
[364858979,1749279038637,-13966.18915865,0.00021617,2]
[364858980,1749279038647,-164.66,0.00021773,2]
[364858981,1749279038656,-500.0,0.00021781,2]
[364858982,1749279038666,-800.0,0.00021889,4]
[364858983,1749279038675,-800.0,0.0002189,4]
[364858984,1749279038684,-316.05,0.00021927,2]
[364858985,1749279038693,-276.28,0.00021945,30]
[364858986,1749279038702,-375.30029243,0.00022047,2]
[364858987,1749279038711,-11287.39842177,0.00022335,2]
[364858988,1749279038721,-13966.18915865,0.00022475,2]
[364858989,1749279038731,-164.66,0.0002256,2]
[364858990,1749279038740,-288.02,0.00022739,2]
[364858991,1749279038750,-205.0,0.00022945,2]
[364858992,1749279038759,-1453.87514286,0.00023,2]
[364858993,1749279038771,-1335.27,0.00023084,2]
[364858994,1749279038781,-587.0,0.00023213,2]
[364858995,1749279038792,-11287.39842177,0.00023217,2]
[364858996,1749279038801,-712.03213416,0.00023233,2]
[364858997,1749279038812,-500.0,0.00023315,2]
[364858998,1749279038821,-1000.0,0.00023323,2]
[364858999,1749279038831,-231.0,0.00023327,2]
[364859000,1749279038841,-13966.18915865,0.00023334,2]
[364859001,1749279038850,-164.66,0.00023347,2]
[364859002,1749279038860,-162.65,0.00023369,2]
[364859003,1749279038869,-164.2,0.0002338,2]
[364859004,1749279038879,-4000.0,0.00023417,4]
[364859005,1749279038888,-2351.0,0.00023438,2]
[364859006,1749279038898,-201.6235465,0.000236,9]
[364859007,1749279038907,-201.6235465,0.000236,9]
[364859008,1749279038916,-201.6235465,0.000236,9]
[364859009,1749279038926,-201.46,0.00023836,2]
[364859010,1749279038936,-5011.2493828,0.00024,2]
[364859011,1749279038946,-157.80164363,0.00024,2]
[364859012,1749279038955,-4000.0,0.00024075,4]
[364859013,1749279038964,-11287.39842177,0.00024099,2]
[364859014,1749279038974,-288.02,0.00024109,2]
[364859015,1749279038983,-164.66,0.00024134,2]
[364859016,1749279038993,-13966.18915865,0.00024192,2]
[364859017,1749279039003,-375.30029243,0.00024193,2]
[364859018,1749279039013,-164.2,0.00024344,2]
[364859019,1749279039023,-316.05,0.00024364,2]
[364859020,1749279039032,-1000.0,0.00024658,2]
[364859021,1749279039041,-500.0,0.00024658,2]
[364859022,1749279039051,-465.94128673,0.00024658,2]
[364859023,1749279039061,-242.90508884,0.00024658,2]
[364859024,1749279039071,-4000.0,0.00024733,4]
[364859025,1749279039081,-151.74,0.00024773,2]
[364859026,1749279039090,-55727.5131825,0.00024783,2]
[364859027,1749279039099,-84308.8710921,0.00024783,2]
[364859028,1749279039109,-306221.566405,0.000248,2]
[364859029,1749279039118,-500.0,0.000248,2]
[364859030,1749279039128,-502.70583548,0.000248,2]
[364859031,1749279039137,-500.0,0.000248,2]
[364859032,1749279039147,-500.0,0.000248,2]
[364859033,1749279039156,-504.08643405,0.000248,2]
[364859034,1749279039165,-500.0,0.000248,2]
[364859035,1749279039175,-712.03213416,0.000249,2]
[364859036,1749279039184,-57091.6940993,0.000249,2]
[364859037,1749279039193,-159.92896135,0.000249,2]
[364859038,1749279039203,-500.0,0.000249,2]
[364859039,1749279039212,-11287.39842177,0.00024981,2]
[364859040,1749279039222,-167.0,0.00025,7]
[364859041,1749279039232,-13966.18915865,0.00025051,2]
[364859042,1749279039242,-201.6235465,0.00025233,12]
[364859043,1749279039252,-823.0,0.00025288,2]
[364859044,1749279039262,-164.2,0.00025309,2]
[364859045,1749279039271,-1000.0,0.00025348,2]
[364859046,1749279039280,-1000.0,0.00025348,2]
[364859047,1749279039290,-1000.0,0.00025348,2]
[364859048,1749279039299,-1335.27,0.00025348,2]
[364859049,1749279039309,-4000.0,0.00025392,4]
[364859050,1749279039318,-1001.57390108,0.00025448,2]
[364859051,1749279039328,-288.02,0.00025479,2]
[364859052,1749279039337,-1097.0,0.00025656,2]
[364859053,1749279039347,-11287.39842177,0.00025862,2]
[364859054,1749279039356,-167.0,0.0002589,7]
[364859055,1749279039366,-1500.0,0.00025896,2]
[364859056,1749279039375,-1500.0,0.00025896,2]
[364859057,1749279039385,-1502.2800896,0.00025896,2]
[364859058,1749279039395,-151.74,0.00025904,2]
[364859059,1749279039406,-13966.18915865,0.00025909,2]
[364859060,1749279039416,-1000.0,0.00025914,2]
[364859061,1749279039429,-4953.8014704,0.00026,2]
[364859062,1749279039439,-4387.96259019,0.00026,2]
[364859063,1749279039449,-164.88,0.00026036,2]
[364859064,1749279039459,-4000.0,0.0002605,4]
[364859065,1749279039470,-151.0,0.00026165,2]
[364859066,1749279039479,-1000.0,0.00026165,2]
[364859067,1749279039488,-207.4,0.00026165,2]
[364859068,1749279039498,-454.54,0.000262,2]
[364859069,1749279039508,-164.2,0.00026274,2]
[364859070,1749279039518,-375.30029243,0.0002634,2]
[364859071,1749279039527,-18023.05362829,0.000264,2]
[364859072,1749279039537,-556.88832092,0.00026444,2]
[364859073,1749279039546,-2000.0,0.00026444,2]
[364859074,1749279039556,-500.0,0.0002652,7]
[364859075,1749279039566,-442.03,0.00026529,2]
[364859076,1749279039575,-712.03213416,0.00026567,2]
[364859077,1749279039585,-4963.69,0.00026591,2]
[364859078,1749279039594,-779.86,0.00026591,2]
[364859079,1749279039604,-205.0,0.00026651,7]
[364859080,1749279039614,-4000.0,0.00026708,4]
[364859081,1749279039624,-13966.18915865,0.00026768,2]
[364859082,1749279039633,-944.0,0.00026812,2]
[364859083,1749279039644,-1164.0,0.00026812,2]
[364859084,1749279039653,-801.0,0.00026812,2]
[364859085,1749279039663,-636.0,0.00026812,2]
[364859086,1749279039678,-1274.0,0.00026812,2]
[364859087,1749279039687,-926.0,0.00026812,2]
[364859088,1749279039697,-2000.0,0.00026812,2]
[364859089,1749279039706,-589.0,0.00026812,2]
[364859090,1749279039716,-557.0,0.00026812,2]
[364859091,1749279039726,-1255.0,0.00026812,2]
[364859092,1749279039735,-6198.901,0.00026812,2]
[364859093,1749279039745,-150.0,0.00026812,2]
[364859094,1749279039754,-4082.0,0.00026812,2]
[364859095,1749279039764,-155.0,0.00026812,2]
[364859096,1749279039774,-883.0,0.00026812,2]
[364859097,1749279039784,-288.02,0.00026849,2]
[364859098,1749279039793,-158.81672623,0.000269,2]
[364859099,1749279039803,-158.81672623,0.000269,2]
[364859100,1749279039812,-158.81672623,0.000269,2]
[364859101,1749279039822,-158.81672623,0.000269,2]
[364859102,1749279039831,-158.81672623,0.000269,2]
[364859103,1749279039841,-341.06,0.00026928,2]
[364859104,1749279039851,-2486.037473,0.00026992,2]
[364859105,1749279039860,-577.9480802,0.00026993,2]
[364859106,1749279039870,-1163.4515739,0.00026993,2]
[364859107,1749279039880,-6430.3379069,0.00026993,2]
[364859108,1749279039889,-1132.5402637,0.00026993,2]
[364859109,1749279039899,-225.2941642,0.00026993,2]
[364859110,1749279039908,-6571.5107652,0.00026993,2]
[364859111,1749279039917,-2000.0,0.00027,2]
[364859112,1749279039927,-10487.98,0.00027,20]
[364859113,1749279039936,-2000.0,0.00027,2]
[364859114,1749279039945,-2000.0,0.00027,2]
[364859115,1749279039955,-201.6235465,0.00027011,16]
[364859116,1749279039965,-300.5,0.0002706,2]
[364859117,1749279039975,-153.0,0.00027123,2]
[364859118,1749279039985,-153.0,0.00027123,2]
[364859119,1749279039994,-153.0,0.00027123,2]
[364859120,1749279040004,-153.0,0.00027123,2]
[364859121,1749279040013,-153.0,0.00027123,2]
[364859122,1749279040023,-153.0,0.00027123,2]
[364859123,1749279040032,-169.0,0.00027185,7]
[364859124,1749279040042,-6051.99,0.000272,2]
[364859125,1749279040051,-195.56308711,0.00027205,30]
[364859126,1749279040061,-168.33921903,0.00027205,30]
[364859127,1749279040070,-177.79677166,0.00027205,30]
[364859128,1749279040079,-266.69515749,0.00027205,30]
[364859129,1749279040088,-266.69515749,0.00027205,30]
[364859130,1749279040097,-164.2,0.00027238,2]
[364859131,1749279040107,-158.81672623,0.00027297,2]
[364859132,1749279040117,-2000.0,0.00027299,2]
[364859133,1749279040132,-4000.0,0.00027367,4]
[364859134,1749279040141,-500.0,0.00027373,2]
[364859135,1749279040151,-501.58070333,0.00027373,2]
[364859136,1749279040160,-500.0,0.00027373,2]
[364859137,1749279040170,-500.0,0.00027373,2]
[364859138,1749279040180,-107204.0492396,0.00027378,2]
[364859139,1749279040191,-160.0,0.00027397,5]
[364859140,1749279040200,-480.0,0.00027397,5]
[364859141,1749279040210,-266.19494421,0.00027397,5]
[364859142,1749279040220,-185.91318012,0.00027397,5]
[364859143,1749279040229,-480.0,0.00027397,5]
[364859144,1749279040239,-480.0,0.00027397,5]
[364859145,1749279040249,-480.0,0.00027397,5]
[364859146,1749279040260,-480.0,0.00027397,5]
[364859147,1749279040269,-480.0,0.00027397,5]
[364859148,1749279040278,-480.0,0.00027397,5]
[364859149,1749279040288,-480.0,0.00027397,5]
[364859150,1749279040298,-480.0,0.00027397,5]
[364859151,1749279040308,-469.52122212,0.00027397,5]
[364859152,1749279040318,-487.73958389,0.00027397,5]
[364859153,1749279040328,-480.0,0.00027397,5]
[364859154,1749279040337,-189.18816879,0.00027397,5]
[364859155,1749279040347,-480.0,0.00027397,5]
[364859156,1749279040357,-480.0,0.00027397,5]
[364859157,1749279040366,-480.0,0.00027397,5]
[364859158,1749279040376,-480.0,0.00027397,5]
[364859159,1749279040386,-161.70695282,0.00027397,2]
[364859160,1749279040395,-480.0,0.00027397,5]
[364859161,1749279040405,-480.0,0.00027397,5]
[364859162,1749279040415,-480.0,0.00027397,5]
[364859163,1749279040428,-480.0,0.00027397,5]
[364859164,1749279040438,-480.0,0.00027397,5]
[364859165,1749279040448,-491.83914908,0.00027397,5]
[364859166,1749279040459,-480.0,0.00027397,5]
[364859167,1749279040473,-480.0,0.00027397,5]
[364859168,1749279040484,-480.0,0.00027397,5]
[364859169,1749279040495,-480.0,0.00027397,5]
[364859170,1749279040507,-480.0,0.00027397,5]
[364859171,1749279040520,-480.0,0.00027397,5]
[364859172,1749279040531,-480.0,0.00027397,5]
[364859173,1749279040542,-480.0,0.00027397,5]
[364859174,1749279040553,-466.81533169,0.00027397,5]
[364859176,1749279040565,-480.0,0.00027397,5]
[364859177,1749279040575,-480.0,0.00027397,5]
[364859178,1749279040599,-480.0,0.00027397,5]
[364859179,1749279040611,-925.24,0.00027397,5]
[364859180,1749279040621,-480.0,0.00027397,5]
[364859181,1749279040631,-480.0,0.00027397,5]
[364859182,1749279040641,-484.56024671,0.00027397,5]
[364859183,1749279040651,-480.0,0.00027397,5]
[364859184,1749279040661,-480.0,0.00027397,5]
[364859185,1749279040671,-480.0,0.00027397,5]
[364859186,1749279040680,-500.0,0.00027397,2]
[364859187,1749279040689,-500.0,0.00027397,2]
[364859188,1749279040699,-500.0,0.00027397,2]
[364859189,1749279040709,-500.0,0.00027397,2]
[364859190,1749279040719,-500.0,0.00027397,2]
[364859191,1749279040729,-500.0,0.00027397,2]
[364859192,1749279040739,-500.0,0.00027397,2]
[364859193,1749279040751,-500.0,0.00027397,2]
[364859194,1749279040762,-500.0,0.00027397,2]
[364859195,1749279040773,-500.0,0.00027397,2]
[364859196,1749279040784,-500.0,0.00027397,2]
[364859197,1749279040795,-214.19827166,0.00027397,5]
[364859198,1749279040806,-500.0,0.00027397,2]
[364859199,1749279040821,-500.0,0.00027397,2]
[364859200,1749279040832,-422.46,0.00027397,2]
[364859201,1749279040843,-375.83070683,0.00027397,5]
[364859202,1749279040853,-399.05641682,0.00027397,5]
[364859203,1749279040862,-493.21366376,0.00027397,5]
[364859204,1749279040871,-480.0,0.00027397,5]
[364859205,1749279040881,-480.0,0.00027397,5]
[364859206,1749279040891,-491.96032128,0.00027397,5]
[364859207,1749279040901,-480.0,0.00027397,5]
[364859208,1749279040910,-480.0,0.00027397,5]
[364859209,1749279040920,-480.0,0.00027397,5]
[364859210,1749279040931,-480.0,0.00027397,5]
[364859211,1749279040942,-431.98009251,0.00027397,5]
[364859212,1749279040952,-480.0,0.00027397,5]
[364859213,1749279040963,-480.0,0.00027397,5]
[364859214,1749279040974,-487.45137835,0.00027397,5]
[364859215,1749279040984,-480.0,0.00027397,5]
[364859216,1749279040994,-480.0,0.00027397,5]
[364859217,1749279041004,-480.0,0.00027397,5]
[364859218,1749279041014,-746.67,0.00027397,5]
[364859219,1749279041030,-480.0,0.00027397,5]
[364859220,1749279041039,-480.0,0.00027397,5]
[364859221,1749279041049,-480.0,0.00027397,5]
[364859222,1749279041062,-480.0,0.00027397,5]
[364859223,1749279041071,-480.0,0.00027397,5]
[364859224,1749279041081,-569.34428304,0.00027397,5]
[364859225,1749279041091,-480.0,0.00027397,5]
[364859226,1749279041100,-480.0,0.00027397,5]
[364859227,1749279041110,-488.13758326,0.00027397,5]
[364859228,1749279041119,-480.0,0.00027397,5]
[364859229,1749279041128,-480.0,0.00027397,5]
[364859230,1749279041138,-500.0,0.00027397,5]
[364859231,1749279041148,-500.0,0.00027397,5]
[364859232,1749279041159,-500.0,0.00027397,5]
[364859233,1749279041169,-480.0,0.00027397,5]
[364859234,1749279041178,-480.0,0.00027397,5]
[364859235,1749279041188,-480.0,0.00027397,5]
[364859236,1749279041199,-480.0,0.00027397,5]
[364859237,1749279041208,-480.0,0.00027397,5]
[364859238,1749279041218,-389.1744737,0.00027397,5]
[364859239,1749279041227,-480.0,0.00027397,5]
[364859240,1749279041237,-480.0,0.00027397,5]
[364859241,1749279041247,-480.0,0.00027397,5]
[364859242,1749279041257,-480.0,0.00027397,5]
[364859243,1749279041269,-492.18677217,0.00027397,5]
[364859244,1749279041279,-480.0,0.00027397,5]
[364859245,1749279041289,-480.0,0.00027397,5]
[364859246,1749279041299,-429.02331791,0.00027397,5]
[364859247,1749279041309,-460.0380426,0.00027397,5]
[364859248,1749279041321,-480.0,0.00027397,5]
[364859249,1749279041332,-480.0,0.00027397,5]
[364859250,1749279041343,-294.95826933,0.00027397,5]
[364859251,1749279041353,-520.68171362,0.00027397,5]
[364859252,1749279041364,-170.02156084,0.00027397,5]
[364859253,1749279041375,-387.15790097,0.00027397,5]
[364859254,1749279041385,-480.0,0.00027397,5]
[364859255,1749279041396,-480.0,0.00027397,5]
[364859256,1749279041408,-480.0,0.00027397,5]
[364859257,1749279041420,-749.61,0.00027397,5]
[364859258,1749279041433,-480.0,0.00027397,5]
[364859259,1749279041444,-480.0,0.00027397,5]
[364859260,1749279041455,-577.15,0.00027397,5]
[364859261,1749279041466,-480.0,0.00027397,5]
[364859262,1749279041481,-515.42095429,0.00027397,5]
[364859263,1749279041491,-489.73576939,0.00027397,5]
[364859264,1749279041501,-480.0,0.00027397,5]
[364859265,1749279041510,-480.0,0.00027397,5]
[364859266,1749279041520,-1795.2,0.00027397,5]
[364859267,1749279041530,-480.0,0.00027397,5]
[364859268,1749279041540,-480.0,0.00027397,5]
[364859269,1749279041550,-480.0,0.00027397,5]
[364859270,1749279041561,-480.0,0.00027397,5]
[364859271,1749279041571,-480.0,0.00027397,5]
[364859272,1749279041580,-480.0,0.00027397,5]
[364859273,1749279041590,-480.0,0.00027397,5]
[364859274,1749279041601,-480.0,0.00027397,5]
[364859275,1749279041610,-480.0,0.00027397,5]